fUST/lending_fUST_20250203
["ID","MTS","AMOUNT","RATE_DAILY","PERIOD"]
[351484437,1738597840690,-500.0,0.00016575,2]
[351484438,1738597840700,-501.40524426,0.00016575,2]
[351484439,1738597840710,-500.0,0.00016575,2]
[351484440,1738597840720,-500.0,0.00016575,2]
[351484441,1738597840731,-151.0,0.00016575,2]
[351484442,1738597840740,-500.0,0.00016575,2]
[351484443,1738597840752,-151.0,0.00016575,2]
[351484444,1738597840762,-500.0,0.00016575,2]
[351484445,1738597840772,-151.0,0.00016575,2]
[351484446,1738597840782,-515.11006296,0.00016575,2]
[351484447,1738597840792,-500.0,0.00016575,2]
[351484448,1738597840802,-595.63,0.00016575,2]
[351484449,1738597840811,-500.0,0.00016575,2]
[351484450,1738597840822,-465.90530248,0.00016575,2]
[351484451,1738597840831,-500.0,0.00016575,2]
[351484452,1738597840842,-500.0,0.00016575,2]
[351484453,1738597840852,-500.0,0.00016575,2]
[351484454,1738597840869,-500.0,0.00016575,2]
[351484455,1738597840878,-151.0,0.00016575,2]
[351484456,1738597840888,-187.754895,0.00016575,2]
[351484457,1738597840897,-500.0,0.00016575,2]
[351484458,1738597840907,-500.0,0.00016575,2]
[351484459,1738597840918,-500.0,0.00016575,2]
[351484460,1738597840929,-293.031384,0.00016575,2]
[351484461,1738597840940,-500.0,0.00016575,2]
[351484462,1738597840952,-500.0,0.00016575,2]
[351484463,1738597840963,-151.0,0.00016575,2]
[351484464,1738597840976,-1632.16,0.00016575,2]
[351484465,1738597840986,-500.0,0.00016575,2]
[351484466,1738597840997,-500.0,0.00016575,2]
[351484467,1738597841007,-500.0,0.00016575,2]
[351484468,1738597841016,-500.0,0.00016575,2]
[351484469,1738597841029,-500.0,0.00016575,2]
[351484470,1738597841039,-500.0,0.00016575,2]
[351484471,1738597841050,-852.73,0.00016575,2]
[351484472,1738597841060,-500.0,0.00016575,2]
[351484473,1738597841069,-500.0,0.00016575,2]
[351484474,1738597841079,-500.0,0.00016575,2]
[351484475,1738597841089,-562.77,0.00016575,2]
[351484476,1738597841098,-500.0,0.00016575,2]
[351484477,1738597841114,-500.0,0.00016575,2]
[351484478,1738597841125,-598.24306704,0.00016575,2]
[351484479,1738597841134,-500.0,0.00016575,2]
[351484480,1738597841144,-500.0,0.00016575,2]
[351484481,1738597841153,-500.0,0.00016575,2]
[351484482,1738597841163,-510.08104898,0.00016575,2]
[351484483,1738597841173,-500.0,0.00016575,2]
[351484484,1738597841194,-500.0,0.00016575,2]
[351484485,1738597841205,-547.37,0.00016575,2]
[351484486,1738597841215,-500.0,0.00016575,2]
[351484487,1738597841225,-500.0,0.00016575,2]
[351484488,1738597841234,-663.17,0.00016575,2]
[351484489,1738597841245,-500.0,0.00016575,2]
[351484490,1738597841255,-500.0,0.00016575,2]
[351484491,1738597841265,-301.96173324,0.00016575,2]
[351484492,1738597841276,-500.0,0.00016575,2]
[351484493,1738597841286,-500.0,0.00016575,2]
[351484494,1738597841296,-500.0,0.00016575,2]
[351484495,1738597841306,-500.0,0.00016575,2]
[351484496,1738597841320,-500.0,0.00016575,2]
[351484497,1738597841332,-500.0,0.00016575,2]
[351484498,1738597841342,-500.0,0.00016575,2]
[351484499,1738597841352,-500.0,0.00016575,2]
[351484500,1738597841367,-500.0,0.00016575,2]
[351484501,1738597841378,-500.0,0.00016575,2]
[351484502,1738597841388,-550.24,0.00016575,2]
[351484503,1738597841399,-500.0,0.00016575,2]
[351484504,1738597841410,-505.02438792,0.00016575,2]
[351484505,1738597841421,-500.0,0.00016575,2]
[351484506,1738597841431,-500.0,0.00016575,2]
[351484507,1738597841443,-500.0,0.00016575,2]
[351484508,1738597841454,-500.0,0.00016575,2]
[351484509,1738597841465,-500.0,0.00016575,2]
[351484510,1738597841475,-808.52,0.00016575,2]
[351484511,1738597841485,-500.0,0.00016575,2]
[351484512,1738597841495,-500.0,0.00016575,2]
[351484513,1738597841505,-500.0,0.00016575,2]
[351484514,1738597841516,-500.0,0.00016575,2]
[351484515,1738597841527,-500.0,0.00016575,2]
[351484516,1738597841538,-151.0,0.00016575,2]
[351484517,1738597841548,-500.0,0.00016575,2]
[351484518,1738597841560,-228.071705,0.00016575,2]
[351484519,1738597841701,-500.0,0.00016575,2]
[351484520,1738597841725,-748.99,0.00016575,2]
[351484521,1738597841736,-500.0,0.00016575,2]
[351484522,1738597841747,-228.071705,0.00016575,2]
[351484523,1738597841757,-500.0,0.00016575,2]
[351484524,1738597841768,-500.0,0.00016575,2]
[351484525,1738597841779,-500.0,0.00016575,2]
[351484526,1738597841789,-500.0,0.00016575,2]
[351484527,1738597841800,-500.0,0.00016575,2]
[351484528,1738597841810,-500.0,0.00016575,2]
[351484529,1738597841820,-500.0,0.00016575,2]
[351484530,1738597841830,-500.0,0.00016575,2]
[351484531,1738597841841,-500.0,0.00016575,2]
[351484532,1738597841852,-503.67470793,0.00016575,2]
[351484533,1738597841868,-500.0,0.00016575,2]
[351484534,1738597841878,-500.0,0.00016575,2]
[351484535,1738597841888,-512.02638768,0.00016575,2]
[351484536,1738597841899,-151.0,0.00016575,2]
[351484537,1738597841909,-500.0,0.00016575,2]
[351484538,1738597841919,-500.0,0.00016575,2]
[351484539,1738597841930,-594.9,0.00016575,2]
[351484540,1738597841940,-500.0,0.00016575,2]
[351484541,1738597841950,-1535.53,0.00016575,2]
[351484542,1738597841960,-500.0,0.00016575,2]
[351484543,1738597841971,-500.0,0.00016575,2]
[351484544,1738597841984,-500.0,0.00016575,2]
[351484545,1738597841994,-2733.15,0.00016575,2]
[351484546,1738597842007,-500.0,0.00016575,2]
[351484547,1738597842018,-500.0,0.00016575,2]
[351484548,1738597842028,-500.0,0.00016575,2]
[351484549,1738597842040,-616.63,0.00016575,2]
[351484550,1738597842050,-151.0,0.00016575,2]
[351484551,1738597842060,-213.00187583,0.00016575,2]
[351484552,1738597842070,-500.0,0.00016575,2]
[351484553,1738597842080,-500.0,0.00016575,2]
[351484554,1738597842090,-500.0,0.00016575,2]
[351484555,1738597842100,-500.0,0.00016575,2]
[351484556,1738597842114,-502.58133081,0.00016575,2]
[351484557,1738597842124,-1930.95,0.00016575,2]
[351484558,1738597842134,-975.27,0.00016575,2]
[351484559,1738597842144,-206.88301409,0.00016575,2]
[351484560,1738597842154,-500.0,0.00016575,2]
[351484561,1738597842164,-537.16,0.00016575,2]
[351484562,1738597842174,-3640.6,0.00016575,2]
[351484563,1738597842184,-500.0,0.00016575,2]
[351484564,1738597842194,-500.0,0.00016575,2]
[351484565,1738597842204,-508.341789,0.00016575,2]
[351484566,1738597842214,-501.93759553,0.00016575,2]
[351484567,1738597842224,-500.0,0.00016575,2]
[351484568,1738597842235,-500.0,0.00016575,2]
[351484569,1738597842246,-413.40817577,0.00016575,2]
[351484570,1738597842256,-609.68815644,0.00016575,2]
[351484571,1738597842266,-651.16,0.00016575,2]
[351484572,1738597842275,-500.0,0.00016575,2]
[351484573,1738597842286,-500.0,0.00016575,2]
[351484574,1738597842295,-500.0,0.00016575,2]
[351484575,1738597842306,-500.0,0.00016575,2]
[351484576,1738597842316,-550.47,0.00016575,2]
[351484577,1738597842327,-500.0,0.00016575,2]
[351484578,1738597842336,-778.86,0.00016575,2]
[351484579,1738597842346,-464.75414457,0.00016575,2]
[351484580,1738597842361,-500.0,0.00016575,2]
[351484581,1738597842372,-500.0,0.00016575,2]
[351484582,1738597842382,-547.34,0.00016575,2]
[351484583,1738597842392,-519.7037956,0.00016575,2]
[351484584,1738597842403,-500.0,0.00016575,2]
[351484585,1738597842413,-2024.39,0.00016575,2]
[351484586,1738597842423,-233.54089318,0.00016575,2]
[351484587,1738597842433,-500.0,0.00016575,2]
[351484588,1738597842443,-500.0,0.00016575,2]
[351484589,1738597842454,-500.0,0.00016575,2]
[351484590,1738597842464,-7706.59,0.00016575,2]
[351484591,1738597842476,-505.64587961,0.00016575,2]
[351484592,1738597842486,-2840.33,0.00016575,2]
[351484593,1738597842497,-514.21875713,0.00016575,2]
[351484594,1738597842507,-500.0,0.00016575,2]
[351484595,1738597842517,-500.0,0.00016575,2]
[351484597,1738597842527,-1009.23,0.00016575,2]
[351484600,1738597842537,-500.0,0.00016575,2]
[351484602,1738597842548,-500.0,0.00016575,2]
[351484604,1738597842558,-500.0,0.00016575,2]
[351484606,1738597842568,-500.0,0.00016575,2]
[351484608,1738597842579,-783.04,0.00016575,2]
[351484610,1738597842589,-500.0,0.00016575,2]
[351484611,1738597842599,-500.0,0.00016575,2]
[351484612,1738597842614,-500.0,0.00016575,2]
[351484613,1738597842624,-500.0,0.00016575,2]
[351484614,1738597842635,-500.0,0.00016575,2]
[351484615,1738597842645,-500.0,0.00016575,2]
[351484616,1738597842655,-500.0,0.00016575,2]
[351484617,1738597842665,-506.56977425,0.00016575,2]
[351484618,1738597842675,-151.0,0.00016575,2]
[351484619,1738597842685,-151.0,0.00016575,2]
[351484620,1738597842695,-500.0,0.00016575,2]
[351484621,1738597842705,-500.0,0.00016575,2]
[351484622,1738597842715,-500.0,0.00016575,2]
[351484623,1738597842726,-500.0,0.00016575,2]
[351484624,1738597842736,-2431.26,0.00016575,2]
[351484625,1738597842746,-500.0,0.00016575,2]
[351484626,1738597842756,-500.0,0.00016575,2]
[351484628,1738597842766,-8118.23,0.00016575,2]
[351484630,1738597842778,-580.86094945,0.00016575,2]
[351484632,1738597842789,-10485.17,0.00016575,2]
[351484634,1738597842799,-500.0,0.00016575,2]
[351484636,1738597842809,-500.0,0.00016575,2]
[351484637,1738597842819,-500.0,0.00016575,2]
[351484639,1738597842829,-1246.64,0.00016575,2]
[351484641,1738597842839,-500.0,0.00016575,2]
[351484643,1738597842849,-508.36759466,0.00016575,2]
[351484645,1738597842866,-500.0,0.00016575,2]
[351484647,1738597842875,-500.0,0.00016575,2]
[351484649,1738597842886,-613.13,0.00016575,2]
[351484651,1738597842896,-1068.69,0.00016575,2]
[351484653,1738597842906,-500.0,0.00016575,2]
[351484655,1738597842916,-500.0,0.00016575,2]
[351484657,1738597842926,-723.03,0.00016575,2]
[351484659,1738597842937,-500.0,0.00016575,2]
[351484662,1738597842947,-500.0,0.00016575,2]
[351484663,1738597842956,-1118.4,0.00016575,2]
[351484665,1738597842966,-1412.67,0.00016575,2]
[351484667,1738597842980,-500.0,0.00016575,2]
[351484669,1738597842990,-500.0,0.00016575,2]
[351484671,1738597843002,-500.0,0.00016575,2]
[351484673,1738597843012,-564.08903278,0.00016575,2]
[351484675,1738597843023,-212.5502707,0.00016575,2]
[351484677,1738597843033,-509.24505237,0.00016575,2]
[351484679,1738597843043,-500.0,0.00016575,2]
[351484681,1738597843053,-500.0,0.00016575,2]
[351484682,1738597843063,-500.0,0.00016575,2]
[351484684,1738597843073,-212.25394753,0.00016575,2]
[351484686,1738597843084,-500.0,0.00016575,2]
[351484688,1738597843093,-500.0,0.00016575,2]
[351484690,1738597843103,-2433.75,0.00016575,2]
[351484692,1738597843121,-510.73974402,0.00016575,2]
[351484694,1738597843130,-500.0,0.00016575,2]
[351484696,1738597843140,-500.0,0.00016575,2]
[351484698,1738597843150,-672.13,0.00016575,2]
[351484700,1738597843160,-500.0,0.00016575,2]
[351484702,1738597843169,-500.0,0.00016575,2]
[351484704,1738597843179,-151.074918,0.00016575,2]
[351484706,1738597843189,-151.074918,0.00016575,2]
[351484708,1738597843198,-151.0,0.00016575,2]
[351484710,1738597843209,-599.18,0.00016575,2]
[351484711,1738597843219,-560.15034623,0.00016575,2]
[351484712,1738597843229,-500.0,0.00016575,2]
[351484713,1738597843239,-151.074918,0.00016575,2]
[351484714,1738597843249,-151.074918,0.00016575,2]
[351484715,1738597843259,-500.0,0.00016575,2]
[351484716,1738597843269,-500.0,0.00016575,2]
[351484717,1738597843278,-500.0,0.00016575,2]
[351484718,1738597843288,-1000.0,0.00016575,7]
[351484719,1738597843298,-500.0,0.00016575,2]
[351484720,1738597843308,-500.0,0.00016575,2]
[351484721,1738597843318,-500.0,0.00016575,2]
[351484723,1738597843328,-500.0,0.00016575,2]
[351484725,1738597843338,-500.0,0.00016575,2]
[351484727,1738597843348,-500.0,0.00016575,2]
[351484729,1738597843363,-500.0,0.00016575,2]
[351484731,1738597843373,-2211.59,0.00016575,2]
[351484733,1738597843383,-17000.16,0.00016575,2]
[351484735,1738597843393,-500.0,0.00016575,2]
[351484737,1738597843403,-500.0,0.00016575,2]
[351484740,1738597843422,-1097.57,0.00016575,2]
[351484741,1738597843435,-500.0,0.00016575,2]
[351484743,1738597843445,-500.0,0.00016575,2]
[351484745,1738597843456,-500.0,0.00016575,2]
[351484747,1738597843466,-500.0,0.00016575,2]
[351484749,1738597843476,-5498.56,0.00016575,2]
[351484751,1738597843487,-500.0,0.00016575,2]
[351484752,1738597843497,-500.0,0.00016575,2]
[351484753,1738597843507,-5056.52,0.00016575,2]
[351484754,1738597843518,-500.0,0.00016575,2]
[351484756,1738597843528,-1165.36,0.00016575,2]
[351484758,1738597843537,-500.0,0.00016575,2]
[351484760,1738597843547,-1063.94,0.00016575,2]
[351484762,1738597843557,-500.0,0.00016575,2]
[351484764,1738597843567,-500.0,0.00016575,2]
[351484766,1738597843577,-500.0,0.00016575,2]
[351484767,1738597843587,-713.06,0.00016575,2]
[351484769,1738597843597,-500.0,0.00016575,2]
[351484772,1738597843611,-755.58,0.00016575,2]
[351484774,1738597843625,-475.30633217,0.00016575,2]
[351484776,1738597843635,-759.32,0.00016575,2]
[351484777,1738597843646,-506.91672502,0.00016575,2]
[351484779,1738597843655,-500.0,0.00016575,2]
[351484781,1738597843665,-500.0,0.00016575,2]
[351484783,1738597843675,-151.0,0.000166,2]
[351484785,1738597843685,-154.4720971,0.000166,2]
[351484786,1738597843695,-153.0,0.000166,2]
[351484788,1738597843705,-154.4720971,0.000166,2]
[351484790,1738597843715,-215.6590378,0.000166,2]
[351484791,1738597843726,-210.8087106,0.000166,2]
[351484792,1738597843736,-154.4720971,0.000166,2]
[351484793,1738597843746,-153.0,0.000166,2]
[351484795,1738597843898,-151.0,0.000166,2]
[351484796,1738597843909,-151.0,0.000166,2]
[351484797,1738597843920,-354.5475049,0.000166,2]
[351484798,1738597843931,-623.0,0.000166,2]
[351484799,1738597843941,-151.0,0.00016611,2]
[351484800,1738597843952,-228.071705,0.00016611,2]
[351484801,1738597843963,-228.071705,0.00016611,2]
[351484802,1738597843974,-151.0,0.00016611,2]
[351484803,1738597843984,-151.0,0.00016612,2]
[351484804,1738597843994,-151.0,0.00016612,2]
[351484805,1738597844004,-151.0,0.00016612,2]
[351484806,1738597844015,-181.35910404,0.00016612,2]
[351484807,1738597844025,-151.074918,0.00016612,2]
[351484808,1738597844035,-151.074918,0.00016612,2]
[351484809,1738597844047,-45597.23566533,0.00016612,7]
[351484810,1738597844057,-263.334,0.00016642,2]
[351484811,1738597844066,-542.52,0.00016642,2]
[351484812,1738597844076,-1994.0,0.00016642,2]
[351484813,1738597844085,-2299.0,0.00016642,2]
[351484814,1738597844095,-154.4720971,0.00016685,2]
[351484815,1738597844108,-154.4720971,0.00016685,2]
[351484816,1738597844121,-154.4720971,0.00016685,2]
[351484817,1738597844132,-151.0,0.000167,2]
[351484818,1738597844142,-151.0,0.000167,2]
[351484819,1738597844152,-151.0,0.000167,2]
[351484820,1738597844162,-151.0,0.000167,2]
[351484821,1738597844171,-151.0,0.00016711,2]
[351484822,1738597844181,-228.071705,0.00016711,2]
[351484823,1738597844191,-228.071705,0.00016711,2]
[351484824,1738597844202,-156.871716,0.00016711,2]
[351484825,1738597844211,-99213.10162811,0.00016712,5]
[351484826,1738597844221,-151.0,0.00016712,2]
[351484827,1738597844231,-151.0,0.00016712,2]
[351484828,1738597844241,-151.0,0.00016712,2]
[351484829,1738597844251,-500.0,0.00016712,2]
[351484830,1738597844261,-504.97581693,0.00016712,2]
[351484831,1738597844271,-500.0,0.00016712,2]
[351484832,1738597844280,-500.0,0.00016712,2]
[351484833,1738597844291,-504.55401459,0.00016712,2]
[351484834,1738597844302,-500.0,0.00016712,2]
[351484835,1738597844312,-500.0,0.00016712,2]
[351484836,1738597844322,-267.13607877,0.00016712,2]
[351484837,1738597844332,-500.0,0.00016712,2]
[351484838,1738597844342,-151.0,0.00016712,2]
[351484839,1738597844352,-500.0,0.00016712,2]
[351484840,1738597844369,-500.0,0.00016712,2]
[351484841,1738597844380,-500.0,0.00016712,2]
[351484842,1738597844391,-573.6034831,0.00016712,2]
[351484843,1738597844402,-151.0,0.00016712,2]
[351484844,1738597844414,-500.0,0.00016712,2]
[351484846,1738597844424,-235.112926,0.00016712,2]
[351484848,1738597844434,-500.0,0.00016712,2]
[351484850,1738597844445,-595.63,0.00016712,2]
[351484852,1738597844455,-500.0,0.00016712,2]
[351484854,1738597844466,-500.0,0.00016712,2]
[351484855,1738597844476,-500.0,0.00016712,2]
[351484857,1738597844486,-500.0,0.00016712,2]
[351484859,1738597844496,-151.0,0.00016712,2]
[351484860,1738597844506,-500.0,0.00016712,2]
[351484861,1738597844516,-543.07730482,0.00016712,2]
[351484863,1738597844527,-500.0,0.00016712,2]
[351484864,1738597844537,-1632.16,0.00016712,2]
[351484865,1738597844547,-168.47974442,0.00016712,2]
[351484866,1738597844556,-500.0,0.00016712,2]
[351484867,1738597844566,-500.0,0.00016712,2]
[351484868,1738597844575,-326.4586179,0.00016712,2]
[351484869,1738597844585,-500.0,0.00016712,2]
[351484870,1738597844594,-852.73,0.00016712,2]
[351484871,1738597844604,-500.0,0.00016712,2]
[351484872,1738597844618,-500.0,0.00016712,2]
[351484873,1738597844628,-562.77,0.00016712,2]
[351484874,1738597844638,-422.00562859,0.00016712,2]
[351484875,1738597844648,-483.95724765,0.00016712,2]
[351484877,1738597844658,-500.0,0.00016712,2]
[351484878,1738597844668,-500.0,0.00016712,2]
[351484880,1738597844678,-500.0,0.00016712,2]
[351484882,1738597844688,-179.83054833,0.00016712,2]
[351484884,1738597844698,-547.37,0.00016712,2]
[351484885,1738597844709,-500.0,0.00016712,2]
[351484886,1738597844719,-663.17,0.00016712,2]
[351484887,1738597844730,-500.0,0.00016712,2]
[351484888,1738597844740,-500.0,0.00016712,2]
[351484889,1738597844750,-500.0,0.00016712,2]
[351484890,1738597844760,-500.0,0.00016712,2]
[351484891,1738597844769,-500.0,0.00016712,2]
[351484892,1738597844779,-500.0,0.00016712,2]
[351484893,1738597844789,-500.0,0.00016712,2]
[351484894,1738597844798,-550.24,0.00016712,2]
[351484895,1738597844811,-500.0,0.00016712,2]
[351484896,1738597844823,-507.77841649,0.00016712,2]
[351484897,1738597844834,-500.0,0.00016712,2]
[351484898,1738597844843,-500.0,0.00016712,2]
[351484899,1738597844853,-500.0,0.00016712,2]
[351484900,1738597844868,-808.52,0.00016712,2]
[351484901,1738597844878,-500.0,0.00016712,2]
[351484902,1738597844889,-500.0,0.00016712,2]
[351484903,1738597844900,-516.53114593,0.00016712,2]
[351484904,1738597844911,-151.0,0.00016712,2]
[351484905,1738597844921,-500.0,0.00016712,2]
[351484906,1738597844930,-228.071705,0.00016712,2]
[351484907,1738597844940,-748.99,0.00016712,2]
[351484908,1738597844953,-500.0,0.00016712,2]
[351484909,1738597844963,-228.071705,0.00016712,2]
[351484910,1738597844977,-500.0,0.00016712,2]
[351484911,1738597844987,-509.73284338,0.00016712,2]
[351484912,1738597844997,-500.0,0.00016712,2]
[351484913,1738597845007,-500.0,0.00016712,2]
[351484914,1738597845018,-500.0,0.00016712,2]
[351484915,1738597845030,-368.59258196,0.00016712,2]
[351484916,1738597845039,-500.0,0.00016712,2]
[351484917,1738597845049,-205.95159752,0.00016712,2]
[351484918,1738597845059,-500.0,0.00016712,2]
[351484919,1738597845070,-500.0,0.00016712,2]
[351484920,1738597845080,-500.0,0.00016712,2]
[351484921,1738597845091,-594.9,0.00016712,2]
[351484922,1738597845102,-500.0,0.00016712,2]
[351484923,1738597845119,-1535.53,0.00016712,2]
[351484925,1738597845129,-500.0,0.00016712,2]
[351484927,1738597845140,-500.0,0.00016712,2]
[351484928,1738597845150,-2733.15,0.00016712,2]
[351484931,1738597845161,-500.0,0.00016712,2]
[351484934,1738597845171,-616.63,0.00016712,2]
[351484936,1738597845180,-506.09264111,0.00016712,2]
[351484939,1738597845190,-500.0,0.00016712,2]
[351484942,1738597845202,-500.0,0.00016712,2]
[351484944,1738597845212,-630.03258442,0.00016712,2]
[351484947,1738597845222,-1930.95,0.00016712,2]
[351484950,1738597845232,-975.27,0.00016712,2]
[351484952,1738597845243,-500.0,0.00016712,2]
[351484953,1738597845253,-537.16,0.00016712,2]
[351484955,1738597845264,-3640.6,0.00016712,2]
[351484957,1738597845274,-500.0,0.00016712,2]
[351484959,1738597845284,-500.0,0.00016712,2]
[351484963,1738597845294,-507.10413781,0.00016712,2]
[351484965,1738597845305,-500.0,0.00016712,2]
[351484968,1738597845315,-651.16,0.00016712,2]
[351484969,1738597845324,-500.0,0.00016712,2]
[351484972,1738597845335,-512.49216272,0.00016712,2]
[351484974,1738597845345,-500.0,0.00016712,2]
[351484976,1738597845355,-500.0,0.00016712,2]
[351484977,1738597845370,-550.47,0.00016712,2]
[351484979,1738597845380,-500.0,0.00016712,2]
[351484981,1738597845390,-778.86,0.00016712,2]
[351484984,1738597845400,-500.0,0.00016712,2]
[351484986,1738597845411,-547.34,0.00016712,2]
[351484987,1738597845421,-500.0,0.00016712,2]
[351484989,1738597845431,-2024.39,0.00016712,2]
[351484992,1738597845442,-500.0,0.00016712,2]
[351484995,1738597845453,-500.0,0.00016712,2]
[351484998,1738597845463,-500.0,0.00016712,2]
[351485000,1738597845472,-7706.59,0.00016712,2]
[351485002,1738597845483,-2840.33,0.00016712,2]
[351485004,1738597845494,-500.0,0.00016712,2]
[351485006,1738597845504,-500.0,0.00016712,2]
[351485009,1738597845514,-1009.23,0.00016712,2]
[351485013,1738597845524,-189.54952417,0.00016712,2]
[351485016,1738597845535,-500.0,0.00016712,2]
[351485019,1738597845545,-500.0,0.00016712,2]
[351485022,1738597845555,-500.0,0.00016712,2]
[351485025,1738597845566,-783.04,0.00016712,2]
[351485028,1738597845575,-500.0,0.00016712,2]
[351485031,1738597845585,-500.0,0.00016712,2]
[351485034,1738597845595,-178.64812816,0.00016712,2]
[351485037,1738597845605,-500.0,0.00016712,2]
[351485040,1738597845623,-500.0,0.00016712,2]
[351485043,1738597845633,-537.71253525,0.00016712,2]
[351485046,1738597845643,-151.0,0.00016712,2]
[351485049,1738597845652,-151.0,0.00016712,2]
[351485052,1738597845662,-500.0,0.00016712,2]
[351485055,1738597845672,-500.0,0.00016712,2]
[351485058,1738597845682,-500.0,0.00016712,2]
[351485061,1738597845692,-500.0,0.00016712,2]
[351485064,1738597845702,-2431.26,0.00016712,2]
[351485067,1738597845712,-500.0,0.00016712,2]
[351485070,1738597845722,-500.0,0.00016712,2]
[351485073,1738597845733,-8118.23,0.00016712,2]
[351485076,1738597845742,-10485.17,0.00016712,2]
[351485079,1738597845752,-500.0,0.00016712,2]
[351485100,1738597845844,-500.0,0.00016712,2]
[351485101,1738597845869,-1246.64,0.00016712,2]
[351485103,1738597845880,-500.0,0.00016712,2]
[351485104,1738597845890,-500.0,0.00016712,2]
[351485106,1738597845900,-613.13,0.00016712,2]
[351485109,1738597845911,-1068.69,0.00016712,2]
[351485111,1738597845922,-310.48475393,0.00016712,2]
[351485115,1738597845933,-500.0,0.00016712,2]
[351485118,1738597845944,-723.03,0.00016712,2]
[351485121,1738597845954,-500.0,0.00016712,2]
[351485124,1738597845964,-1118.4,0.00016712,2]
[351485126,1738597845980,-500.0,0.00016712,2]
[351485128,1738597845990,-1412.67,0.00016712,2]
[351485130,1738597846000,-160.60233829,0.00016712,2]
[351485132,1738597846010,-500.0,0.00016712,2]
[351485133,1738597846021,-529.2416808,0.00016712,2]
[351485136,1738597846031,-153.64205941,0.00016712,2]
[351485138,1738597846042,-500.0,0.00016712,2]
[351485140,1738597846052,-500.0,0.00016712,2]
[351485142,1738597846062,-500.0,0.00016712,2]
[351485144,1738597846072,-2433.75,0.00016712,2]
[351485145,1738597846082,-514.55791316,0.00016712,2]
[351485147,1738597846091,-672.13,0.00016712,2]
[351485149,1738597846101,-500.0,0.00016712,2]
[351485151,1738597846114,-179.60945294,0.00016712,2]
[351485154,1738597846125,-151.074918,0.00016712,2]
[351485156,1738597846135,-151.074918,0.00016712,2]
[351485157,1738597846145,-599.18,0.00016712,2]
[351485159,1738597846156,-500.0,0.00016712,2]
[351485161,1738597846166,-151.074918,0.00016712,2]
[351485163,1738597846177,-151.074918,0.00016712,2]
[351485165,1738597846187,-500.0,0.00016712,2]
[351485167,1738597846198,-500.0,0.00016712,2]
[351485169,1738597846208,-1000.0,0.00016712,7]
[351485170,1738597846219,-500.0,0.00016712,2]
[351485171,1738597846229,-500.0,0.00016712,2]
[351485172,1738597846239,-500.0,0.00016712,2]
[351485173,1738597846249,-348.89166637,0.00016712,2]
[351485174,1738597846259,-500.0,0.00016712,2]
[351485175,1738597846269,-500.0,0.00016712,2]
[351485176,1738597846279,-2211.59,0.00016712,2]
[351485177,1738597846290,-17000.16,0.00016712,2]
[351485178,1738597846301,-500.0,0.00016712,2]
[351485179,1738597846310,-1097.57,0.00016712,2]
[351485181,1738597846320,-500.0,0.00016712,2]
[351485182,1738597846330,-500.0,0.00016712,2]